bitfinex-derivatives/quotes_BTCF0:USTF0_20250308
["timestamp","ask_amount","ask_price","bid_price","bid_amount"]
[1741439103085,0.92317125,86220.0,86219.0,0.0623]
[1741439103884,0.92517125,86220.0,86219.0,0.0623]
[1741439105797,0.92315202,86220.0,86219.0,0.0623]
[1741439106097,0.94327122,86220.0,86219.0,0.0623]
[1741439106396,0.94327122,86220.0,86219.0,0.0946]
[1741439106789,0.94327122,86220.0,86219.0,0.0623]
[1741439106988,0.97647122,86220.0,86219.0,0.0623]
[1741439109301,0.94327122,86220.0,86219.0,0.0943]
[1741439110390,0.82726802,86220.0,86219.0,0.0943]
[1741439110586,0.82726802,86220.0,86219.0,0.2103045]
[1741439110587,0.7350992,86220.0,86219.0,0.2103045]
[1741439110798,0.73308,86220.0,86219.0,0.221795]
[1741439111496,0.73308,86220.0,86219.0,0.23462162]
[1741439111897,0.73308,86220.0,86219.0,0.59542162]
[1741439112105,0.73108,86220.0,86219.0,0.74542162]
[1741439112404,0.13881638,86230.0,86229.0,0.1159911]
[1741439112705,0.13561556,86235.0,86234.0,0.1159844]
[1741439112888,0.08878566,86235.0,86234.0,0.48961102]
[1741439113095,0.08878566,86235.0,86234.0,0.63961102]
[1741439113397,0.08878566,86235.0,86234.0,0.63965995]
[1741439114009,0.01740001,86240.0,86239.0,0.1159776]
[1741439114191,0.17360437,86242.0,86239.0,0.1159776]
[1741439114192,0.17360437,86242.0,86239.0,0.37367555]
[1741439114391,0.00017396,86243.0,86241.0,0.115975]
[1741439114597,0.00017396,86243.0,86242.0,0.12884915]
[1741439114994,0.00017396,86243.0,86242.0,0.29345394]
[1741439116106,0.00117396,86243.0,86242.0,0.29345394]
[1741439116506,0.00117396,86243.0,86242.0,0.75312737]
[1741439117407,0.3608,86277.0,86242.0,0.65813863]
[1741439117612,0.01740001,86266.0,86265.0,0.1159427]
[1741439117907,0.01740001,86266.0,86265.0,0.14980311]
[1741439118112,0.01740001,86266.0,86265.0,0.16143884]
[1741439118408,0.01740001,86266.0,86265.0,0.29045398]
[1741439118608,0.01740001,86266.0,86265.0,0.30505877]
[1741439120407,0.02240001,86266.0,86265.0,0.30505877]
[1741439120912,0.02240001,86266.0,86265.0,0.15505877]
[1741439121306,0.02240001,86266.0,86265.0,0.14218322]
[1741439121498,0.02240001,86266.0,86265.0,0.15519371]
[1741439122302,0.005,86266.0,86265.0,0.30519371]
[1741439122513,0.00017396,86274.0,86273.0,0.1159319]
[1741439122709,0.00017396,86274.0,86273.0,0.52527546]
[1741439122905,0.00017396,86274.0,86273.0,0.67527546]
[1741439123111,0.00017396,86274.0,86273.0,0.52527546]
[1741439123414,0.00017396,86274.0,86273.0,0.50434718]
[1741439124001,0.00717396,86274.0,86273.0,0.50534718]
[1741439125314,0.00717396,86274.0,86273.0,0.50528309]
[1741439128614,0.06123233,86278.0,86273.0,0.44731669]
[1741439128817,0.0315,86276.0,86275.0,0.1159266]
[1741439129116,0.0315,86276.0,86275.0,0.128873]
[1741439129412,0.0315,86276.0,86275.0,0.12894481]
[1741439129613,0.0315,86276.0,86275.0,0.1435496]
[1741439130315,0.1474279,86276.0,86275.0,0.1435496]
[1741439130511,0.0315,86276.0,86275.0,0.1435496]
[1741439131710,0.0315,86276.0,86275.0,0.1445496]
[1741439132110,0.0639,86276.0,86275.0,0.1445496]
[1741439133205,0.0639,86276.0,86275.0,0.13153139]
[1741439133406,0.0639,86276.0,86275.0,0.14457193]
[1741439134403,0.0639,86276.0,86275.0,0.16572182]
[1741439135217,0.0639,86276.0,86275.0,0.16591117]
[1741439136114,0.08130001,86276.0,86275.0,0.16591117]
[1741439137409,0.19722791,86276.0,86275.0,0.16591117]
[1741439138718,0.08130001,86276.0,86275.0,0.16591117]
[1741439139621,0.08130001,86276.0,86275.0,0.16565552]
[1741439141111,0.0552047,86276.0,86275.0,0.16565552]
[1741439141311,0.0552047,86276.0,86275.0,0.16585725]
[1741439141812,0.73092,86279.0,86278.0,0.1159252]
[1741439142018,0.73092,86279.0,86278.0,0.15025106]
[1741439142514,0.73092,86279.0,86278.0,0.14373207]
[1741439143319,0.59316301,86279.0,86278.0,0.14350146]
[1741439143622,0.08068,86292.0,86291.0,0.1159078]
[1741439143917,0.1965864,86292.0,86291.0,0.16326362]
[1741439144120,0.08068,86292.0,86291.0,0.16326362]
[1741439144320,0.1965864,86292.0,86291.0,0.16326362]
[1741439144623,0.1965864,86292.0,86291.0,0.14348406]
[1741439145123,0.1965864,86292.0,86291.0,0.14448406]
[1741439145320,0.2595864,86292.0,86291.0,0.14450271]
[1741439146518,0.14368,86292.0,86291.0,0.14450271]
[1741439146725,0.14368,86292.0,86291.0,0.6026166]
[1741439148011,0.063,86292.0,86291.0,0.6026166]
[1741439148219,0.063,86292.0,86291.0,0.61436735]
[1741439149119,0.063,86292.0,86291.0,0.97516735]
[1741439149322,0.01740001,86296.0,86291.0,0.92284393]
[1741439149525,0.01740001,86304.0,86299.0,0.115897]
[1741439149719,0.01740001,86304.0,86299.0,0.20252935]
[1741439150125,0.07391187,86300.0,86299.0,0.30557697]
[1741439150330,0.07391187,86300.0,86299.0,0.35082768]
[1741439150331,0.03767962,86300.0,86299.0,0.35082768]
[1741439151126,0.03767962,86300.0,86299.0,0.35087714]
[1741439151322,0.01740001,86304.0,86303.0,0.1158916]
[1741439151516,0.73052,86306.0,86305.0,0.115889]
[1741439151717,0.73052,86306.0,86305.0,0.20257081]
[1741439151917,0.73052,86306.0,86305.0,0.28656914]
[1741439152218,0.73052,86306.0,86305.0,0.35016914]
[1741439152828,0.8464076,86306.0,86305.0,0.28656914]
[1741439153027,0.8464076,86306.0,86305.0,0.24767143]
[1741439153326,0.8464076,86306.0,86305.0,0.24829978]
[1741439153529,0.8784076,86306.0,86305.0,0.22664516]
[1741439153725,0.79302,86306.0,86305.0,1.88906928]
[1741439154038,0.79302,86306.0,86305.0,1.84381857]
[1741439154039,0.54954793,86306.0,86305.0,1.84381857]
[1741439154621,0.54954793,86306.0,86305.0,1.77831312]
[1741439155019,0.54954793,86306.0,86305.0,0.98816328]
[1741439156018,0.56694794,86306.0,86305.0,0.98816328]
[1741439156219,0.3060698,86306.0,86305.0,0.98816328]
[1741439156524,0.32346981,86306.0,86305.0,0.98816328]
[1741439157533,0.32346981,86306.0,86305.0,1.00119352]
[1741439158230,0.32346981,86306.0,86305.0,1.36199352]
[1741439158530,0.32346981,86306.0,86305.0,1.27978289]
[1741439162031,0.32346981,86306.0,86305.0,0.476689]
[1741439163934,0.1158943,86301.0,86300.0,0.4608732]
[1741439164228,0.1158943,86301.0,86300.0,0.4608757]
[1741439164428,0.0637,86302.0,86301.0,0.1158943]
[1741439169018,0.1158957,86300.0,86299.0,0.20861326]
[1741439169218,0.5576557,86300.0,86299.0,0.20693326]
[1741439169521,0.115901,86296.0,86295.0,0.27591102]
[1741439169721,0.476701,86296.0,86295.0,0.27591102]
[1741439169929,0.65066254,86296.0,86290.0,0.34498]
[1741439170130,0.4767078,86291.0,86290.0,0.34498]
[1741439170532,0.4767078,86291.0,86290.0,0.24518]
[1741439170533,0.65560111,86291.0,86290.0,0.24518]
[1741439170726,0.65560111,86291.0,86290.0,0.00321267]
[1741439171624,0.50560111,86291.0,86290.0,0.00321267]
[1741439171819,0.4767078,86291.0,86290.0,0.00321267]
[1741439172728,0.4767078,86291.0,86290.0,0.03531267]
[1741439173035,0.36281749,86291.0,86290.0,0.15122177]
[1741439173227,0.36281749,86291.0,86290.0,0.1470091]
[1741439174236,0.47872529,86291.0,86290.0,0.0311]
[1741439174432,0.54152529,86291.0,86290.0,0.0311]
[1741439174827,0.54152529,86291.0,86290.0,0.1470091]
[1741439175422,0.54152529,86291.0,86290.0,0.0311]
[1741439175625,0.42561749,86291.0,86283.0,0.00017385]
[1741439175833,0.1159158,86285.0,86284.0,0.1490165]
[1741439176033,0.1981158,86285.0,86284.0,0.2115165]
[1741439176232,0.1981158,86285.0,86284.0,0.0956]
[1741439176423,0.21551581,86285.0,86284.0,0.0956]
[1741439176633,0.27941581,86285.0,86284.0,0.0956]
[1741439178841,0.27941581,86285.0,86284.0,0.2115172]
[1741439179728,0.27941581,86285.0,86284.0,0.0956]
[1741439180228,0.27941581,86285.0,86284.0,0.2115172]
[1741439180427,0.16350001,86285.0,86284.0,0.2115172]
[1741439180623,0.09960001,86285.0,86284.0,0.2115172]
[1741439180837,0.01740001,86285.0,86284.0,0.2115172]
[1741439181026,0.04958001,86285.0,86284.0,0.2115172]
[1741439182123,0.10392809,86293.0,86288.0,0.0579553]
[1741439182336,0.00412809,86293.0,86292.0,0.4767064]
[1741439182643,0.01740001,86295.0,86294.0,0.1159037]
[1741439183135,0.00412809,86300.0,86296.0,0.0579505]
[1741439183342,0.00412809,86300.0,86299.0,0.476697]
[1741439184053,0.13863516,86304.0,86303.0,0.1158916]
[1741439184933,0.13863516,86304.0,86303.0,0.12892608]
[1741439185735,0.13863516,86304.0,86303.0,0.1158916]
[1741439185945,0.13863516,86304.0,86303.0,0.1475916]
[1741439186434,0.01740001,86305.0,86304.0,0.1158903]
[1741439186628,0.01740001,86305.0,86304.0,0.1475903]
[1741439187335,0.01740001,86305.0,86304.0,0.1781903]
[1741439194237,0.00884643,86317.0,86316.0,0.1158742]
[1741439194444,0.01740001,86316.0,86315.0,0.1158755]
[1741439194638,0.01740001,86316.0,86315.0,0.2068755]
[1741439194833,0.01740001,86316.0,86315.0,0.21988311]
[1741439195739,0.01740001,86316.0,86315.0,0.2068755]
[1741439195939,0.0324,86321.0,86315.0,0.091]
[1741439196143,0.1158664,86322.0,86321.0,0.1158675]
[1741439196345,0.08208,86323.0,86321.0,0.1158675]
[1741439196647,0.08208,86323.0,86322.0,0.1158661]
[1741439196833,0.08208,86323.0,86322.0,0.1798661]
[1741439197438,0.09062068,86323.0,86322.0,0.1798661]
[1741439198547,0.1158758,86316.0,86315.0,0.1158725]
[1741439198945,0.1158713,86319.0,86318.0,0.1158688]
[1741439199448,0.45142068,86323.0,86310.0,0.0312]
[1741439199749,0.1158822,86310.0,86304.0,0.089145]
[1741439199952,0.1978022,86310.0,86305.0,0.1158883]
[1741439200540,0.1978022,86310.0,86289.0,0.06951347]
[1741439200744,0.1978022,86310.0,86285.0,0.41416039]
[1741439200745,0.1978022,86310.0,86293.0,0.4187524]
[1741439201052,0.1978022,86310.0,86298.0,0.1158975]
[1741439201263,0.20960236,86310.0,86293.0,0.4187524]
[1741439201554,0.20960236,86310.0,86299.0,0.1158962]
[1741439201856,0.1158836,86309.0,86299.0,0.1158962]
[1741439202446,0.1158836,86309.0,86304.0,0.1158898]
[1741439202754,0.1179007,86309.0,86300.0,0.1158955]
[1741439203654,0.1179007,86309.0,86298.0,0.115898]
[1741439204157,0.1179007,86309.0,86301.0,0.1158933]
[1741439204358,0.1179007,86309.0,86295.0,0.0579511]
[1741439204553,0.1179007,86309.0,86293.0,0.3608]
[1741439205054,0.1179007,86309.0,86295.0,0.1159022]
[1741439205649,0.1179007,86309.0,86295.0,0.2318037]
[1741439205957,0.1179007,86309.0,86295.0,0.1159015]
[1741439206958,0.1179007,86309.0,86294.0,0.033]
[1741439207661,0.2658836,86309.0,86285.0,0.0579578]
[1741439207959,0.26790081,86309.0,86288.0,0.1159107]
[1741439208153,0.26790081,86309.0,86290.0,0.1159081]
[1741439208858,0.30090081,86309.0,86290.0,0.1159081]
[1741439209160,0.30090081,86309.0,86289.0,0.0316]
[1741439209565,0.30090081,86309.0,86290.0,0.1159085]
[1741439210057,0.15090081,86309.0,86292.0,0.1159062]
[1741439210259,0.18140081,86309.0,86295.0,0.1159019]
[1741439210756,0.1793836,86309.0,86295.0,0.1159019]
[1741439211264,0.1814008,86309.0,86297.0,0.1158991]
[1741439211964,0.1814008,86309.0,86298.0,0.1158977]
[1741439213164,0.1814008,86309.0,86295.0,0.057951]
[1741439213461,0.1814008,86309.0,86296.0,0.1159009]
[1741439213655,0.1814008,86309.0,86295.0,0.057951]
[1741439213857,0.1793836,86309.0,86296.0,0.115901]
[1741439214160,0.1814008,86309.0,86296.0,0.115901]
[1741439214355,0.1814008,86309.0,86294.0,0.032]
[1741439214563,0.1814008,86309.0,86294.0,0.1479032]
[1741439214858,0.1814008,86309.0,86294.0,0.032]
[1741439215352,0.2632008,86309.0,86294.0,0.032]
[1741439215552,0.2632008,86309.0,86293.0,0.0301]
[1741439216061,0.28060081,86309.0,86293.0,0.0301]
[1741439216253,0.2632008,86309.0,86293.0,0.0301]
[1741439216451,0.28060081,86309.0,86293.0,0.1460044]
[1741439216648,0.28060081,86309.0,86294.0,0.1159036]
[1741439216959,0.27858361,86309.0,86294.0,0.1159036]
[1741439217263,0.28060082,86309.0,86295.0,0.0312]
[1741439219255,1.01100082,86309.0,86295.0,0.0312]
[1741439219858,1.00898361,86309.0,86295.0,0.0312]
[1741439220064,1.01100081,86309.0,86295.0,0.0312]
[1741439221572,0.115901,86296.0,86295.0,0.0312]
[1741439221862,0.558101,86296.0,86295.0,0.0312]
[1741439222953,0.56011836,86296.0,86295.0,0.0312]
[1741439224365,0.92091836,86296.0,86295.0,0.0312]
[1741439228168,0.98161836,86296.0,86295.0,0.0312]
[1741439228771,0.979601,86296.0,86295.0,0.0312]
[1741439228958,0.98161844,86296.0,86295.0,0.0312]
[1741439231064,0.98161844,86296.0,86293.0,0.0301]
[1741439231065,0.1159037,86294.0,86293.0,0.0301]
[1741439231459,0.1159104,86289.0,86288.0,0.0317]
[1741439231655,0.1159118,86288.0,86287.0,0.00017385]
[1741439231864,0.2318118,86288.0,86287.0,0.00017385]
[1741439232463,0.26048077,86288.0,86287.0,0.00017385]
[1741439232960,0.29348077,86288.0,86287.0,0.00017385]
[1741439234269,0.24348077,86288.0,86287.0,0.00017385]
[1741439234572,0.24348077,86288.0,86287.0,0.00117385]
[1741439234959,0.24549847,86288.0,86287.0,0.00117385]
[1741439235568,0.38424818,86288.0,86287.0,0.00117385]
[1741439236465,0.40164819,86288.0,86287.0,0.00117385]
[1741439237673,0.28569639,86288.0,86287.0,0.11708695]
[1741439237971,0.28367869,86288.0,86287.0,0.11708695]
[1741439238173,0.28367869,86288.0,86287.0,0.00117385]
[1741439238473,0.15529767,86288.0,86287.0,0.18088695]
[1741439238868,0.15525767,86288.0,86287.0,0.18088695]
[1741439239775,0.27116947,86288.0,86287.0,0.18088695]
[1741439240979,0.15525767,86288.0,86287.0,0.18088695]
[1741439241679,0.27116947,86288.0,86287.0,0.06497385]
[1741439242079,0.27152947,86288.0,86287.0,0.06497385]
[1741439243374,0.21515181,86288.0,86287.0,0.06497385]
[1741439245069,0.21515181,86288.0,86287.0,0.18088695]
[1741439246177,0.21515181,86288.0,86287.0,0.17988695]
[1741439246373,0.09924001,86288.0,86287.0,0.18088695]
[1741439247178,0.09900001,86288.0,86287.0,0.18088695]
[1741439247569,0.21491181,86288.0,86287.0,0.06497385]
[1741439248082,0.57571181,86288.0,86287.0,0.06497385]
[1741439249275,0.57571181,86288.0,86287.0,0.18088695]
[1741439249783,0.57571181,86288.0,86287.0,0.06497385]
[1741439250284,0.58031487,86288.0,86287.0,0.06497385]
[1741439250482,0.53061487,86288.0,86287.0,0.06497385]
[1741439250782,0.64451487,86288.0,86287.0,0.06497385]
[1741439250983,0.61261487,86288.0,86287.0,0.06497385]
[1741439251186,0.46480307,86288.0,86287.0,0.18088695]
[1741439251379,0.58071487,86288.0,86287.0,0.18088695]
[1741439251685,0.58071487,86288.0,86287.0,0.06497385]
[1741439252586,0.55831181,86288.0,86287.0,0.06497385]
[1741439252884,0.64067181,86288.0,86287.0,0.06497385]
[1741439253179,0.60757181,86288.0,86287.0,0.06397385]
[1741439253786,0.57647181,86288.0,86287.0,0.06397385]
[1741439253977,0.37820001,86288.0,86287.0,0.17988695]
[1741439254179,0.01740001,86288.0,86287.0,0.17988695]
[1741439255480,0.01740001,86288.0,86287.0,0.18288695]
[1741439256178,0.13877094,86289.0,86288.0,0.1159118]
[1741439256383,0.13877094,86289.0,86288.0,0.1774118]
[1741439258273,0.73048,86294.0,86288.0,0.0615]
[1741439258473,0.73048,86294.0,86293.0,0.1159051]
[1741439259095,0.01740001,86297.0,86296.0,0.115901]
[1741439259980,0.01740001,86297.0,86296.0,0.12742722]
[1741439261190,0.01740001,86298.0,86297.0,0.1158997]
[1741439261389,0.01740001,86298.0,86297.0,0.2108997]
[1741439265084,0.13329841,86298.0,86297.0,0.2108997]
[1741439265290,0.04850001,86298.0,86297.0,0.2108997]
[1741439265487,0.01740001,86298.0,86297.0,0.2108997]
[1741439268893,0.01740001,86298.0,86297.0,0.1799997]
[1741439273187,0.13329841,86298.0,86297.0,0.1799997]
[1741439274110,0.19739841,86298.0,86297.0,0.1799997]
[1741439275191,0.08150001,86298.0,86297.0,0.1799997]
[1741439275987,0.0641,86298.0,86297.0,0.1799997]
[1741439276394,0.08150001,86298.0,86297.0,0.1799997]
[1741439279203,0.04920001,86298.0,86297.0,0.1799997]
[1741439279398,0.01740001,86298.0,86297.0,0.2120997]
[1741439279699,0.0001735,86304.0,86303.0,0.1158916]
[1741439279894,0.0001735,86304.0,86303.0,0.4766916]
[1741439280901,0.0001735,86304.0,86303.0,0.5417916]
[1741439286307,0.13383675,86322.0,86315.0,0.1158755]
[1741439286608,0.06444277,86322.0,86321.0,0.4766675]
[1741439287202,0.08184278,86322.0,86321.0,0.4766675]
[1741439287402,0.08184278,86322.0,86321.0,0.5397675]
[1741439288103,0.01740001,86322.0,86321.0,0.5397675]
[1741439288310,0.01740001,86322.0,86321.0,0.55113529]
[1741439291013,0.01740001,86322.0,86321.0,0.52073529]
[1741439292211,0.01740001,86322.0,86321.0,0.15993529]
[1741439295909,0.0318,86327.0,86321.0,0.15993529]
[1741439295910,0.0318,86327.0,86321.0,0.04406779]
[1741439296110,0.08020001,86326.0,86325.0,0.1158621]
[1741439296510,0.08020001,86326.0,86325.0,0.1775621]
[1741439298611,0.08020001,86326.0,86325.0,0.1785621]
[1741439309426,0.08020001,86326.0,86325.0,0.5393621]
[1741439310924,0.19606081,86326.0,86325.0,0.4776621]
[1741439311125,0.08020001,86326.0,86325.0,0.4776621]
[1741439311631,0.08020001,86326.0,86325.0,0.5411621]
[1741439316224,0.0628,86326.0,86325.0,0.5411621]
[1741439316429,0.08020001,86326.0,86325.0,0.5411621]
[1741439316634,0.08020001,86326.0,86325.0,0.5714621]
[1741439317428,0.08479946,86326.0,86325.0,0.5714621]
[1741439318437,0.08020001,86326.0,86325.0,0.5714621]
[1741439318636,0.19606081,86326.0,86325.0,0.5411621]
[1741439318835,0.19606081,86326.0,86325.0,0.1803621]
[1741439320127,0.08020001,86326.0,86325.0,0.1803621]
[1741439320532,0.19606081,86326.0,86325.0,0.1803621]
[1741439320833,0.19606081,86326.0,86325.0,0.001]
[1741439327839,0.19606081,86326.0,86325.0,0.0621]
[1741439328530,0.19606081,86326.0,86325.0,0.001]
[1741439330032,0.20068541,86326.0,86325.0,0.001]
[1741439330643,0.19606081,86326.0,86325.0,0.001]
[1741439332033,0.37618261,86326.0,86325.0,0.001]
[1741439332234,0.28455363,86326.0,86325.0,0.001]
[1741439332442,0.17560669,86326.0,86285.0,0.0579578]
[1741439332649,0.17560669,86326.0,86283.0,0.057959]
[1741439332650,0.4766916,86303.0,86293.0,0.37639659]
[1741439332848,1.2875716,86303.0,86294.0,0.0307]
[1741439333038,1.3810716,86303.0,86294.0,0.0307]
[1741439333439,1.38566742,86303.0,86294.0,0.0307]
[1741439333744,1.38566742,86303.0,86294.0,0.03087385]
[1741439333942,1.3810716,86303.0,86294.0,0.03087385]
[1741439334343,1.39286527,86303.0,86299.0,0.0629]
[1741439334747,1.39286527,86303.0,86294.0,0.00017385]
[1741439334939,1.39286527,86303.0,86295.0,0.0629]
[1741439335140,1.39488247,86303.0,86295.0,0.0629]
[1741439335946,1.39949322,86303.0,86295.0,0.0629]
[1741439336149,1.41689323,86303.0,86295.0,0.0629]
[1741439336744,0.1158957,86300.0,86299.0,0.0313]
[1741439337453,0.1158957,86300.0,86294.0,0.00017385]
[1741439337454,0.0579496,86298.0,86294.0,0.00017385]
[1741439337648,0.4767024,86295.0,86294.0,0.00017385]
[1741439338044,0.48131315,86295.0,86294.0,0.00017385]
[1741439339753,0.4767024,86295.0,86294.0,0.00017385]
[1741439340053,0.4757024,86295.0,86294.0,0.00017385]
[1741439340447,0.4757024,86295.0,86294.0,0.06647385]
[1741439341146,0.47771979,86295.0,86294.0,0.06947385]
[1741439342752,0.4757024,86295.0,86294.0,0.06947385]
[1741439343251,0.4757024,86295.0,86294.0,0.03627385]
[1741439343748,0.47771979,86295.0,86294.0,0.03627385]
[1741439345246,0.47871979,86295.0,86294.0,0.03427385]
[1741439345953,0.4767024,86295.0,86294.0,0.03427385]
[1741439346154,0.47871979,86295.0,86294.0,0.03427385]
[1741439347555,0.48339256,86295.0,86294.0,0.03427385]
[1741439348956,0.48137517,86295.0,86294.0,0.03427385]
[1741439349168,0.48339256,86295.0,86294.0,0.03427385]
[1741439351844,0.48137517,86295.0,86294.0,0.03427385]
[1741439352051,0.48339256,86295.0,86294.0,0.03427385]
[1741439354951,0.48137517,86295.0,86294.0,0.03427385]
[1741439355148,0.48339256,86295.0,86294.0,0.03427385]
[1741439356057,0.50079257,86295.0,86294.0,0.03427385]
[1741439356257,0.48339256,86295.0,86294.0,0.03427385]
[1741439356444,0.50079257,86295.0,86294.0,0.03427385]
[1741439357849,0.49877518,86295.0,86294.0,0.03427385]
[1741439358051,0.50079257,86295.0,86294.0,0.03427385]
[1741439358559,0.50279257,86295.0,86294.0,0.03327385]
[1741439359360,0.50079257,86295.0,86294.0,0.03327385]
[1741439359660,0.50479257,86295.0,86294.0,0.03327385]
[1741439360453,0.50379257,86295.0,86294.0,0.03427385]
[1741439361361,0.86459257,86295.0,86294.0,0.03427385]
[1741439363451,0.92096704,86295.0,86294.0,0.03427385]
[1741439363861,0.91894965,86295.0,86294.0,0.03427385]
[1741439364060,0.92096706,86295.0,86294.0,0.03427385]
[1741439366863,1.05331515,86295.0,86294.0,0.03427385]
[1741439367165,1.05433256,86295.0,86294.0,0.03427385]
[1741439369759,1.05533256,86295.0,86294.0,0.03427385]
[1741439369958,1.05331515,86295.0,86294.0,0.03427385]
[1741439370153,1.05533256,86295.0,86294.0,0.03427385]
[1741439370560,1.05433256,86295.0,86294.0,0.03327385]
[1741439370760,1.05533256,86295.0,86294.0,0.03427385]
[1741439370961,1.05333256,86295.0,86294.0,0.03427385]
[1741439371161,1.05533256,86295.0,86294.0,0.03427385]
[1741439371362,1.05433256,86295.0,86294.0,0.03327385]
[1741439371560,1.05533256,86295.0,86294.0,0.03427385]
[1741439371756,1.05533256,86295.0,86294.0,0.03527385]
[1741439371959,1.05533256,86295.0,86265.0,0.1159422]
[1741439371960,1.37854682,86295.0,86270.0,0.20784961]
[1741439372161,0.8375346,86271.0,86270.0,0.23974961]
[1741439372367,0.9182146,86271.0,86270.0,0.23974961]
[1741439372664,0.92288737,86271.0,86270.0,0.23974961]
[1741439373062,0.98618737,86271.0,86270.0,0.23974961]
[1741439373462,0.99769818,86271.0,86270.0,0.23974961]
[1741439374063,0.99669818,86271.0,86270.0,0.24074961]
[1741439374656,1.00069818,86271.0,86270.0,0.23974961]
[1741439374958,1.73125818,86271.0,86270.0,0.23974961]
[1741439375464,1.73225818,86271.0,86270.0,0.23974961]
[1741439376162,1.73225818,86271.0,86270.0,0.20784961]
[1741439376163,1.74207959,86271.0,86270.0,0.20784961]
[1741439376368,1.74207959,86271.0,86267.0,0.0318]
[1741439376369,0.1159387,86268.0,86267.0,0.0318]
[1741439376672,0.11594,86267.0,86266.0,0.27665303]
[1741439376966,0.17974,86267.0,86266.0,0.27665303]
[1741439377163,0.25912987,86267.0,86266.0,0.27665303]
[1741439377761,0.25912987,86267.0,86262.0,0.03197385]
[1741439377762,0.1159454,86263.0,86262.0,0.03197385]
[1741439377959,0.4767454,86263.0,86262.0,0.03197385]
[1741439378261,0.48922161,86263.0,86262.0,0.03197385]
[1741439378767,0.55182161,86263.0,86262.0,0.03197385]
[1741439379269,0.54601817,86263.0,86262.0,0.03197385]
[1741439380668,0.54701817,86263.0,86262.0,0.03197385]
[1741439381361,0.54701817,86263.0,86262.0,0.00017385]
[1741439385068,0.54903642,86263.0,86262.0,0.00017385]
[1741439389575,0.54903642,86263.0,86257.0,0.0322]
[1741439389576,0.0579796,86253.0,86229.0,0.1159901]
[1741439389877,0.1159615,86251.0,86250.0,0.0312]
[1741439390172,0.8375615,86251.0,86250.0,0.0312]
[1741439390375,0.90653427,86251.0,86250.0,0.0312]
[1741439391173,0.9085528,86251.0,86250.0,0.0312]
[1741439392278,0.90388003,86251.0,86250.0,0.0312]
[1741439392775,0.90388003,86251.0,86250.0,0.0342]
[1741439393982,0.8697615,86251.0,86250.0,0.0342]
[1741439394191,0.92025998,86251.0,86250.0,0.0672]
[1741439394574,0.95185998,86251.0,86250.0,0.0672]
[1741439395282,0.95285998,86251.0,86250.0,0.0312]
[1741439395478,0.98505998,86251.0,86250.0,0.0312]
[1741439396077,0.1159629,86250.0,86249.0,0.0309]
[1741439396285,0.13336291,86250.0,86249.0,0.0309]
[1741439396484,0.19746291,86250.0,86249.0,0.0309]
[1741439397180,0.19948145,86250.0,86249.0,0.0309]
[1741439397683,0.08451855,86250.0,86244.0,0.0304]
[1741439397882,0.1159696,86245.0,86244.0,0.0304]
[1741439398776,0.1797696,86245.0,86244.0,0.0304]
[1741439399385,0.1159696,86245.0,86244.0,0.0314]
[1741439400674,0.12763226,86245.0,86244.0,0.0314]
[1741439400873,0.12763226,86245.0,86244.0,0.0627]
[1741439401080,0.12965079,86245.0,86244.0,0.0627]
[1741439401481,0.19305079,86245.0,86244.0,0.0627]
[1741439402186,0.21033079,86245.0,86244.0,0.0627]
[1741439405787,0.20831226,86245.0,86244.0,0.0627]
[1741439406182,0.21033079,86245.0,86244.0,0.0627]
[1741439408080,0.94125079,86245.0,86244.0,0.0627]
[1741439408989,0.93923226,86245.0,86244.0,0.0627]
[1741439409205,0.94125079,86245.0,86244.0,0.0627]
[1741439409883,0.92958813,86245.0,86244.0,0.0627]
[1741439410483,0.81156,86245.0,86244.0,0.1786709]
[1741439410678,0.81156,86245.0,86244.0,0.0627]
[1741439410882,0.9275296,86245.0,86244.0,0.0627]
[1741439412091,1.15717541,86245.0,86244.0,0.0627]
[1741439415498,1.21987541,86245.0,86244.0,0.0627]
[1741439415790,0.9902296,86245.0,86244.0,0.001]
[1741439416181,1.16474178,86245.0,86244.0,0.001]
[1741439416494,1.23214179,86245.0,86244.0,0.001]
[1741439416994,0.1159723,86243.0,86242.0,0.00017385]
[1741439417186,0.4767723,86243.0,86242.0,0.00017385]
[1741439417388,0.4767723,86243.0,86227.0,0.031]
[1741439417588,0.4767897,86230.0,86227.0,0.031]
[1741439417781,0.5574297,86230.0,86227.0,0.031]
[1741439418186,0.5574297,86230.0,86223.0,0.0302]
[1741439418387,0.6207297,86230.0,86208.0,0.1160187]
[1741439418696,0.6197297,86230.0,86221.0,0.34497054]
[1741439418906,0.44344,86230.0,86229.0,0.39264413]
[1741439419590,0.44444,86230.0,86229.0,0.39264413]
[1741439419785,0.44444,86230.0,86229.0,0.1807911]
[1741439420992,0.08364,86230.0,86229.0,0.1807911]
[1741439424210,0.08364,86230.0,86229.0,0.5415911]
[1741439426603,0.08364,86230.0,86229.0,0.1807911]
[1741439426801,0.08364,86230.0,86229.0,0.5415911]
[1741439428798,0.08364,86230.0,86229.0,0.1807911]
[1741439431506,0.44444,86230.0,86229.0,0.1807911]
[1741439431716,0.5604297,86230.0,86223.0,0.27665303]
[1741439431910,0.1159978,86224.0,86223.0,0.27665303]
[1741439432807,0.1784978,86224.0,86223.0,0.27665303]
[1741439433009,0.1784978,86224.0,86223.0,0.27765303]
[1741439433209,0.18985469,86224.0,86223.0,0.27765303]
[1741439434104,0.19187371,86224.0,86223.0,0.27765303]
[1741439434599,0.06451902,86224.0,86223.0,0.39365223]
[1741439435307,0.06451902,86224.0,86223.0,0.1471992]
[1741439435308,0.28490347,86224.0,86223.0,0.1471992]
[1741439435602,0.28490347,86224.0,86223.0,0.1793992]
[1741439435802,0.29348264,86224.0,86223.0,0.1793992]
[1741439436011,0.29146362,86224.0,86223.0,0.1793992]
[1741439436406,0.30886363,86224.0,86223.0,0.1793992]
[1741439437007,0.30886363,86224.0,86223.0,0.1783992]
[1741439437510,0.42486143,86224.0,86223.0,0.1783992]
[1741439438405,0.1160005,86222.0,86221.0,0.00017395]
[1741439438596,0.4768005,86222.0,86221.0,0.00017395]
[1741439438797,0.4768005,86222.0,86221.0,0.11617585]
[1741439439011,0.5407005,86222.0,86221.0,0.11617585]
[1741439439205,0.5407005,86222.0,86221.0,0.00017395]
[1741439439714,0.5407005,86222.0,86221.0,0.03317395]
[1741439439907,0.02597918,86224.0,86221.0,0.03317395]
[1741439440107,0.02597918,86224.0,86223.0,0.1159992]
[1741439440304,0.01740001,86224.0,86223.0,0.1159992]
[1741439440511,0.01740001,86224.0,86223.0,0.1782992]
[1741439442315,0.01740001,86224.0,86223.0,0.3282992]
[1741439442817,0.10060001,86234.0,86232.0,0.1159871]
[1741439443006,0.21658451,86234.0,86232.0,0.4767871]
[1741439443601,0.21658451,86234.0,86232.0,0.5369871]
[1741439443808,0.10060001,86234.0,86232.0,0.5369871]
[1741439444305,0.02040001,86233.0,86232.0,0.5369871]